[Event "July 23 Late 2024"]
[Site "Chess.com"]
[Date "2024.07.23"]
[Round "5.2"]
[White "Nakamura, Hikaru"]
[Black "Anton Guijarro, David"]
[Result "1-0"]
[ECO "B21"]
[WhiteElo "3231"]
[BlackElo "2943"]
[PlyCount "69"]
[EventDate "2024.??.??"]
[WhiteTeam "USA"]
[BlackTeam "ESP"]
[TimeControl "180+1"]
[WhiteClock "0:00:26"]
[BlackClock "0:00:04"]

1. e4 {[%emt 0:00:02]} c5 {[%emt 0:00:04]} 2. d4 {[%emt 0:00:04]} cxd4 {[%emt 0:00:01]} 3. c3 {[%emt 0:00:00]} dxc3 {[%emt 0:00:02]} 4. Nxc3 {[%emt 0:00:00]} e6 {[%emt 0:00:01]} 5. Nf3 {[%emt 0:00:02]} a6 {[%emt 0:00:01]} 6. Bf4 {[%emt 0:00:10]} Nc6 {[%emt 0:00:05]} 7. Be2 {[%emt 0:00:08]} Nge7 {[%emt 0:00:09]} ({RR} 7... d6 8. O-O Be7 9. Qb3 e5 10. Be3 Nf6 11. Bb6 Qd7 12. Rfd1 O-O 13. Rac1 h6 14. Nh4 Qe8 15. Ng6 Be6 16. Bc4 fxg6 17. Bxe6+ Kh7 18. Nd5 Bd8 19. Nxf6+ Rxf6 20. Bd5 Rb8 21. Be3 Be7 22. Qa4 {Nakamura,H (2775)-Caruana,F (2764) chess.com INT 2023 1-0 (44)}) ({RR} 7... d6 8. O-O Be7 9. Qb3 Nf6 10. Rfd1 Qc7 11. Qa3 e5 12. Bg5 O-O 13. Bxf6 Bxf6 14. Qxd6 Qxd6 15. Rxd6 Be7 16. Rdd1 Bc5 17. Rd5 Ba7 18. Nxe5 Nxe5 19. Rxe5 Be6 20. Nd5 Bd4 21. Rg5 b5 22. Rb1 {Jakobeit,D (2250)-Milov,L (2416) Karlsruhe GER 2025 ½-½ (40)}) 8. Qb3 $146 {[%emt 0:00:13]} ({RR} 8. e5 Ng6 9. Bg3 h5 10. h3 h4 11. Bh2 b5 12. O-O Bb7 13. Ne4 Rc8 14. Rc1 Qc7 15. Nd6+ Bxd6 16. exd6 Qb6 17. Ng5 Qd4 18. Qb3 O-O 19. Qf3 Qf6 20. Qh5 Rfe8 21. Qh7+ Kf8 22. Ne4 Qxb2 {Winter Atwell,A (2250)-Nader,A (2469) Chess.com INT 2020 1-0 (31)}) 8... Ng6 {[%emt 0:00:05]} 9. Be3 {[%emt 0:00:02]} b5 {[%emt 0:00:05]} 10. h4 {[%emt 0:00:01]} Qc7 {[%emt 0:00:24]} 11. h5 {[%emt 0:00:10]} Nf4 {[%emt 0:00:17]} 12. Bf1 {[%emt 0:00:01]} Na5 {[%emt 0:00:01]} 13. Qd1 {[%emt 0:00:02]} Nc4 {[%emt 0:00:07]} 14. Rc1 {[%emt 0:00:21]} Bb4 {[%emt 0:00:20]} 15. Qb3 {[%emt 0:00:59]} Ba5 {[%emt 0:00:52]} 16. Rh4 {[%emt 0:00:20]} Nxe3 {[%emt 0:00:13]} 17. fxe3 {[%emt 0:00:02]} Nxh5 {[%emt 0:00:03]} 18. Rxh5 {[%emt 0:00:02]} Qg3+ {[%emt 0:00:00]} 19. Ke2 {[%emt 0:00:05]} O-O {[%emt 0:00:00]} 20. Rg5 {[%emt 0:00:09]} Qb8 {[%emt 0:00:04]} 21. Kf2 {[%emt 0:00:01]} h6 {[%emt 0:00:01]} 22. Rh5 {[%emt 0:00:01]} Bb7 {[%emt 0:00:02]} 23. Bd3 {[%emt 0:00:00]} Bc7 {[%emt 0:00:04]} 24. Ne2 {[%emt 0:00:01]} Rc8 {[%emt 0:00:03]} 25. Rch1 {[%emt 0:00:02]} Bd6 {[%emt 0:00:02]} 26. g4 {[%emt 0:00:01]} f6 {[%emt 0:00:07]} 27. Ned4 {[%emt 0:00:02]} Re8 {[%emt 0:00:02]} 28. Bb1 {[%emt 0:00:04]} Bg3+ {[%emt 0:00:01]} 29. Kg2 {[%emt 0:00:01]} d5 {[%emt 0:00:02]} 30. exd5 {[%emt 0:00:02]} Bxd5 {[%emt 0:00:02]} 31. Rxd5 {[%emt 0:00:00]} exd5 {[%emt 0:00:00]} 32. Qxd5+ {[%emt 0:00:00]} Kh8 {[%emt 0:00:01]} 33. Qf5 {[%emt 0:00:01]} Kg8 {[%emt 0:00:01]} 34. Qh7+ {[%emt 0:00:01]} Kf8 {[%emt 0:00:09]} 35. Nf5 {[%emt 0:00:00]} 1-0